[Event "Open Nuevo Centro. Jornada 2"]
[Site "Chess.com"]
[Date "2020.06.26"]
[Round "1"]
[White "Crevillen Abad, Clemente"]
[Black "García Giménez, Santiago"]
[Result "0-1"]
[WhiteElo "1755"]
[BlackElo "1486"]
[TimeControl "180+2"]
[EndTime "10:37:24 PDT"]
[Termination "Victoria de Somaelfideitos por abandono"]

1. e4 {[%clk 0:03:01]} 1... e5 {[%clk 0:02:56.6]} 2. Nf3 {[%clk 0:03:01]} 2...
Nc6 {[%clk 0:02:56.3]} 3. Bb5 {[%clk 0:03:01.6]} 3... a6 {[%clk 0:02:57.3]} 4.
Bxc6 {[%clk 0:03:02.1]} 4... dxc6 {[%clk 0:02:59.2]} 5. d4 {[%clk 0:03:03.1]}
5... exd4 {[%clk 0:03:00]} 6. Qxd4 {[%clk 0:03:04.4]} 6... Qxd4 {[%clk
0:03:01.6]} 7. Nxd4 {[%clk 0:03:05.5]} 7... Bd7 {[%clk 0:03:03.2]} 8. Be3 {[%clk
0:03:02.7]} 8... O-O-O {[%clk 0:03:04.5]} 9. Nd2 {[%clk 0:02:46.2]} 9... Ne7
{[%clk 0:02:57.8]} 10. O-O-O {[%clk 0:02:45.4]} 10... c5 {[%clk 0:02:56]} 11.
N4b3 {[%clk 0:02:39.7]} 11... b6 {[%clk 0:02:55.7]} 12. f3 {[%clk 0:02:33.8]}
12... a5 {[%clk 0:02:52.2]} 13. Nf1 {[%clk 0:02:30.5]} 13... Nc6 {[%clk
0:02:33.6]} 14. c3 {[%clk 0:02:14.9]} 14... Bd6 {[%clk 0:02:31.6]} 15. Ng3
{[%clk 0:02:14]} 15... g6 {[%clk 0:02:31.7]} 16. Nd2 {[%clk 0:02:10.7]} 16...
Rde8 {[%clk 0:02:27.8]} 17. Nc4 {[%clk 0:02:09.9]} 17... Bxg3 {[%clk 0:02:23.2]}
18. hxg3 {[%clk 0:02:09.5]} 18... f5 {[%clk 0:02:24.8]} 19. Rhe1 {[%clk
0:01:41.8]} 19... fxe4 {[%clk 0:02:24.6]} 20. Bf4 {[%clk 0:01:42.1]} 20... exf3
{[%clk 0:02:21.6]} 21. gxf3 {[%clk 0:01:42.7]} 21... Rxe1 {[%clk 0:02:18.7]} 22.
Rxe1 {[%clk 0:01:43]} 22... Re8 {[%clk 0:02:20.3]} 23. Rxe8+ {[%clk 0:01:40.3]}
23... Bxe8 {[%clk 0:02:22.2]} 24. Kd2 {[%clk 0:01:40]} 24... Bf7 {[%clk
0:02:22.3]} 25. b3 {[%clk 0:01:20]} 25... Bxc4 {[%clk 0:02:20.8]} 26. bxc4
{[%clk 0:01:20.3]} 26... Nd8 {[%clk 0:02:19.6]} 27. Kd3 {[%clk 0:01:19.8]} 27...
Ne6 {[%clk 0:02:20.3]} 28. Be5 {[%clk 0:01:19.7]} 28... Kd7 {[%clk 0:02:20.9]}
29. g4 {[%clk 0:01:13.7]} 29... h5 {[%clk 0:02:14.7]} 30. gxh5 {[%clk
0:01:12.2]} 30... gxh5 {[%clk 0:02:16.6]} 31. f4 {[%clk 0:01:13]} 31... h4
{[%clk 0:01:45.2]} 32. f5 {[%clk 0:01:13.1]} 32... Nd8 {[%clk 0:01:42]} 33. Ke4
{[%clk 0:01:10]} 33... h3 {[%clk 0:01:38.2]} 34. a3 {[%clk 0:01:07.7]} 34... Nf7
{[%clk 0:01:38.5]} 35. Bg3 {[%clk 0:01:04.6]} 35... Nd6+ {[%clk 0:01:39.5]} 36.
Kf4 {[%clk 0:01:01.7]} 36... Nxc4 {[%clk 0:01:39]} 37. Kg5 {[%clk 0:01:00.4]}
37... Nd6 {[%clk 0:01:26.2]} 38. a4 {[%clk 0:00:56]} 38... Ne4+ {[%clk
0:01:26.5]} 39. Kf4 {[%clk 0:00:44.3]} 39... Nxc3 {[%clk 0:01:26.6]} 40. f6
{[%clk 0:00:44.2]} 40... Ke6 {[%clk 0:01:22.5]} 41. Kg5 {[%clk 0:00:44.9]} 41...
Ne4+ {[%clk 0:01:23.1]} 0

[Event "Open Nuevo Centro. Jornada 2"]
[Site "Chess.com"]
[Date "2020.06.26"]
[Round "1"]
[White "Hassomal Daswani, Birjkumar"]
[Black "Elenkov Olmo, Ivan"]
[Result "1-0"]
[WhiteElo "1847"]
[BlackElo "931"]
[TimeControl "180+2"]
[EndTime "10:37:31 PDT"]
[Termination "Victoria de daz000007 por abandono"]

1. e4 {[%clk 0:02:57.3]} 1... e5 {[%clk 0:02:59.4]} 2. Nf3 {[%clk 0:02:57.4]}
2... Nc6 {[%clk 0:02:54.3]} 3. Bc4 {[%clk 0:02:57.1]} 3... h6 {[%clk 0:02:54]}
4. Nc3 {[%clk 0:02:56]} 4... Nf6 {[%clk 0:02:52.8]} 5. d3 {[%clk 0:02:53]} 5...
Bc5 {[%clk 0:02:51]} 6. h3 {[%clk 0:02:52.3]} 6... O-O {[%clk 0:02:48.4]} 7. O-O
{[%clk 0:02:51.7]} 7... d6 {[%clk 0:02:48.5]} 8. a3 {[%clk 0:02:49.5]} 8... a6
{[%clk 0:02:45.9]} 9. b4 {[%clk 0:02:41.5]} 9... b5 {[%clk 0:02:38.2]} 10. Bd5
{[%clk 0:02:37.6]} 10... Bd4 {[%clk 0:02:35.3]} 11. Nxd4 {[%clk 0:02:31.7]}
11... Nxd5 {[%clk 0:02:31.9]} 12. Nxc6 {[%clk 0:02:30.1]} 12... Nxc3 {[%clk
0:02:31.9]} 13. Qe1 {[%clk 0:02:19]} 13... Qd7 {[%clk 0:02:26.8]} 14. Qxc3
{[%clk 0:02:18.5]} 14... Bb7 {[%clk 0:02:13.1]} 15. Na5 {[%clk 0:02:13.3]} 15...
Rab8 {[%clk 0:01:57.8]} 16. Nxb7 {[%clk 0:02:12.2]} 16... Rxb7 {[%clk
0:01:57.3]} 17. d4 {[%clk 0:02:11.3]} 17... exd4 {[%clk 0:01:55.1]} 18. Qxd4
{[%clk 0:02:10.7]} 18... Qc8 {[%clk 0:01:46]} 19. Bb2 {[%clk 0:02:05.6]} 19...
f6 {[%clk 0:01:42.8]} 20. f4 {[%clk 0:01:57.8]} 20... c5 {[%clk 0:01:26.4]} 21.
Qxd6 {[%clk 0:01:48.9]} 21... cxb4 {[%clk 0:01:24.7]} 22. axb4 {[%clk
0:01:43.4]} 22... Rd7 {[%clk 0:01:11.8]} 23. Qe6+ {[%clk 0:01:40.1]} 23... Kh8
{[%clk 0:01:10.9]} 24. Kh1 {[%clk 0:01:29.9]} 24... Re8 {[%clk 0:01:01.5]} 25.
Qg4 {[%clk 0:01:19.3]} 25... Rxe4 {[%clk 0:00:58.7]} 26. Rxa6 {[%clk 0:01:09.1]}
26... Rxb4 {[%clk 0:00:52.3]} 27. Bxf6 {[%clk 0:01:00.7]} 27... gxf6 {[%clk
0:00:52]} 28. Rxf6 {[%clk 0:00:58.5]} 28... Rh7 {[%clk 0:00:42]} 29. Qxc8+
{[%clk 0:00:55.6]} 1

[Event "Open Nuevo Centro. Jornada 2"]
[Site "Chess.com"]
[Date "2020.06.26"]
[Round "1"]
[White "Gutierrez Marco, Dario"]
[Black "Sanchis Bon, Sergi"]
[Result "1-0"]
[WhiteElo "1918"]
[BlackElo "1008"]
[TimeControl "180+2"]
[EndTime "10:37:42 PDT"]
[Termination "Victoria de rususs por jaque mate"]

1. e4 {[%clk 0:02:58.8]} 1... e5 {[%clk 0:03:00]} 2. Nf3 {[%clk 0:02:59.4]} 2...
Qf6 {[%clk 0:02:59]} 3. Nc3 {[%clk 0:02:58.7]} 3... c6 {[%clk 0:02:58.2]} 4. Bc4
{[%clk 0:02:58]} 4... g5 {[%clk 0:02:53.5]} 5. d3 {[%clk 0:02:56.7]} 5... h6
{[%clk 0:02:48.2]} 6. Be3 {[%clk 0:02:52.9]} 6... g4 {[%clk 0:02:45.4]} 7. Ng1
{[%clk 0:02:50.8]} 7... Na6 {[%clk 0:02:34]} 8. Nge2 {[%clk 0:02:47]} 8... Nc5
{[%clk 0:02:29.3]} 9. Ng3 {[%clk 0:02:43.9]} 9... Na6 {[%clk 0:02:00.8]} 10. Qd2
{[%clk 0:02:35.8]} 10... b5 {[%clk 0:01:50.2]} 11. Bb3 {[%clk 0:02:33.3]} 11...
Nc5 {[%clk 0:01:37.5]} 12. O-O-O {[%clk 0:02:16.1]} 12... Nxb3+ {[%clk
0:01:22.4]} 13. axb3 {[%clk 0:02:18]} 13... Qd8 {[%clk 0:01:14.6]} 14. Rhf1
{[%clk 0:02:08.8]} 14... Qa5 {[%clk 0:01:13.6]} 15. Kb1 {[%clk 0:02:09.5]} 15...
b4 {[%clk 0:01:08.3]} 16. Na2 {[%clk 0:02:09.9]} 16... c5 {[%clk 0:00:52.8]} 17.
f4 {[%clk 0:02:09.8]} 17... exf4 {[%clk 0:00:52]} 18. Rxf4 {[%clk 0:01:59.4]}
18... Rb8 {[%clk 0:00:51]} 19. Rdf1 {[%clk 0:01:55.2]} 19... Rb6 {[%clk
0:00:46.2]} 20. Rxf7 {[%clk 0:01:55.1]} 20... Ne7 {[%clk 0:00:36.6]} 21. Qf2
{[%clk 0:01:15.3]} 21... Ng6 {[%clk 0:00:31.8]} 22. c3 {[%clk 0:00:44.2]} 22...
bxc3 {[%clk 0:00:20.9]} 23. Nxc3 {[%clk 0:00:46.1]} 23... Ra6 {[%clk 0:00:20.9]}
24. Kc2 {[%clk 0:00:45.3]} 24... d6 {[%clk 0:00:17.4]} 25. Qf6 {[%clk
0:00:43.7]} 25... Bd7 {[%clk 0:00:15.4]} 26. Qxg6 {[%clk 0:00:44.1]} 26... Rb6
{[%clk 0:00:11]} 27. Rxf8+ {[%clk 0:00:45]} 27... Ke7 {[%clk 0:00:06.8]} 28.
Qf7# {[%clk 0:00:46.3]} 1

[Event "Open Nuevo Centro. Jornada 2"]
[Site "Chess.com"]
[Date "2020.06.26"]
[Round "1"]
[White "Rodriguez Rodriguez, Joan David "]
[Black "Pallardo Lozoya, Jose Vicente"]
[Result "0-1"]
[WhiteElo "1610"]
[BlackElo "1099"]
[TimeControl "180+2"]
[EndTime "10:37:53 PDT"]
[Termination "Victoria de PallardoChess por abandono"]

1. d4 {[%clk 0:03:01.9]} 1... d5 {[%clk 0:02:58.7]} 2. c4 {[%clk 0:02:59.8]}
2... dxc4 {[%clk 0:02:58.6]} 3. e3 {[%clk 0:02:59.6]} 3... Nf6 {[%clk
0:02:58.8]} 4. Bxc4 {[%clk 0:03:00.3]} 4... e6 {[%clk 0:02:59]} 5. Nf3 {[%clk
0:03:00.7]} 5... a6 {[%clk 0:02:59.1]} 6. a3 {[%clk 0:02:59.7]} 6... b5 {[%clk
0:02:54.5]} 7. Bd3 {[%clk 0:02:59.2]} 7... c5 {[%clk 0:02:55.5]} 8. dxc5 {[%clk
0:02:56.3]} 8... Bxc5 {[%clk 0:02:52.5]} 9. O-O {[%clk 0:02:47.9]} 9... Bb7
{[%clk 0:02:52]} 10. Be2 {[%clk 0:02:22]} 10... Nbd7 {[%clk 0:02:44]} 11. Nc3
{[%clk 0:02:22]} 11... O-O {[%clk 0:02:35.6]} 12. Re1 {[%clk 0:02:13.4]} 12...
Rc8 {[%clk 0:02:07.9]} 13. Nd4 {[%clk 0:02:13.6]} 13... Ne5 {[%clk 0:01:50.9]}
14. Nc2 {[%clk 0:01:31.3]} 14... Qc7 {[%clk 0:01:35.6]} 15. Bd2 {[%clk
0:01:17.4]} 15... Rfd8 {[%clk 0:01:27.2]} 16. Nb4 {[%clk 0:01:08.4]} 16... Qb6
{[%clk 0:00:40.1]} 17. Qc2 {[%clk 0:01:03.7]} 17... a5 {[%clk 0:00:33.9]} 18.
Nd3 {[%clk 0:01:01.4]} 18... Bd6 {[%clk 0:00:27.5]} 19. Rac1 {[%clk 0:00:26.8]}
19... Neg4 {[%clk 0:00:21.3]} 20. Bxg4 {[%clk 0:00:24.5]} 20... Nxg4 {[%clk
0:00:23.2]} 21. Qd1 {[%clk 0:00:23.7]} 21... Bxh2+ {[%clk 0:00:20.7]} 22. Kh1
{[%clk 0:00:23.8]} 22... Rxd3 {[%clk 0:00:21.3]} 23. Qxg4 {[%clk 0:00:22.9]}
23... Rxd2 {[%clk 0:00:22.6]} 24. Kxh2 {[%clk 0:00:23]} 24... Rxf2 {[%clk
0:00:23.7]} 25. Qg3 {[%clk 0:00:18.1]} 25... Rxb2 {[%clk 0:00:22.6]} 26. Rf1
{[%clk 0:00:18.9]} 26... Rxg2+ {[%clk 0:00:22.8]} 27. Qxg2 {[%clk 0:00:18.9]}
27... Bxg2 {[%clk 0:00:24.7]} 28. Kxg2 {[%clk 0:00:20.8]} 28... b4 {[%clk
0:00:25]} 29. axb4 {[%clk 0:00:21.1]} 29... axb4 {[%clk 0:00:26.9]} 0

[Event "Open Nuevo Centro. Jornada 2"]
[Site "Chess.com"]
[Date "2020.06.26"]
[Round "1"]
[White "Más Ripoll, Vicente"]
[Black "Valverde Caballero, Rafael"]
[Result "0-1"]
[WhiteElo "1006"]
[BlackElo "1905"]
[TimeControl "180+2"]
[EndTime "10:37:59 PDT"]
[Termination "Victoria de Eumenes por jaque mate"]

1. e4 {[%clk 0:03:00.8]} 1... c5 {[%clk 0:02:59.9]} 2. Nf3 {[%clk 0:02:59.4]}
2... Nc6 {[%clk 0:02:57.9]} 3. Bc4 {[%clk 0:02:59.1]} 3... g6 {[%clk 0:02:27.9]}
4. b3 {[%clk 0:02:54.1]} 4... Bg7 {[%clk 0:02:16.2]} 5. Nc3 {[%clk 0:02:54]}
5... e6 {[%clk 0:02:14.2]} 6. Rb1 {[%clk 0:02:51]} 6... Nge7 {[%clk 0:02:15.3]}
7. Bb2 {[%clk 0:02:51.3]} 7... O-O {[%clk 0:02:15.3]} 8. O-O {[%clk 0:02:50.2]}
8... a6 {[%clk 0:02:07.7]} 9. Be2 {[%clk 0:02:22.7]} 9... b5 {[%clk 0:02:05.3]}
10. a3 {[%clk 0:02:21.4]} 10... Bb7 {[%clk 0:02:05.4]} 11. d3 {[%clk 0:02:08.6]}
11... d5 {[%clk 0:02:00.3]} 12. exd5 {[%clk 0:01:55.3]} 12... exd5 {[%clk
0:01:58.2]} 13. h3 {[%clk 0:01:43.1]} 13... Re8 {[%clk 0:01:28]} 14. Qd2 {[%clk
0:01:31.9]} 14... Nf5 {[%clk 0:01:19.9]} 15. Nd1 {[%clk 0:01:24.7]} 15... Bxb2
{[%clk 0:01:18.1]} 16. Nxb2 {[%clk 0:01:22.4]} 16... d4 {[%clk 0:01:14.3]} 17.
Rbe1 {[%clk 0:01:10.1]} 17... Qd5 {[%clk 0:01:06.8]} 18. Nh2 {[%clk 0:01:03.6]}
18... Nh4 {[%clk 0:00:55.1]} 19. Nf3 {[%clk 0:00:49.8]} 19... Nf5 {[%clk
0:00:28]} 20. Nh2 {[%clk 0:00:35.4]} 20... Re7 {[%clk 0:00:20.7]} 21. Bg4 {[%clk
0:00:33.8]} 21... Qd6 {[%clk 0:00:20]} 22. Rxe7 {[%clk 0:00:27]} 22... Nfxe7
{[%clk 0:00:19.9]} 23. Re1 {[%clk 0:00:18.8]} 23... Nd5 {[%clk 0:00:20.9]} 24.
Bf3 {[%clk 0:00:07.9]} 24... Nc3 {[%clk 0:00:21.7]} 25. Bxc6 {[%clk 0:00:07.1]}
25... Qxc6 {[%clk 0:00:22]} 26. Qh6 {[%clk 0:00:06.8]} 26... Qxg2# {[%clk
0:00:20.9]} 0

[Event "Open Nuevo Centro. Jornada 2"]
[Site "Chess.com"]
[Date "2020.06.26"]
[Round "1"]
[White "Vicent Lázaro, Elena"]
[Black "Bosch Jordà, Ricard"]
[Result "0-1"]
[WhiteElo "660"]
[BlackElo "1767"]
[TimeControl "180+2"]
[EndTime "10:38:00 PDT"]
[Termination "Victoria de UltimateLimo por tiempo"]

1. e3 {[%clk 0:03:01.2]} 1... Nf6 {[%clk 0:02:58]} 2. c4 {[%clk 0:02:58]} 2...
b6 {[%clk 0:02:59]} 3. Nc3 {[%clk 0:02:57.3]} 3... Bb7 {[%clk 0:02:59.8]} 4. Bd3
{[%clk 0:02:51.9]} 4... c5 {[%clk 0:02:59.6]} 5. Bb1 {[%clk 0:02:47.6]} 5... e6
{[%clk 0:02:57.8]} 6. Qc2 {[%clk 0:02:36.8]} 6... d5 {[%clk 0:02:52.2]} 7. cxd5
{[%clk 0:02:36.3]} 7... exd5 {[%clk 0:02:52.2]} 8. Nb5 {[%clk 0:02:32.6]} 8...
Nc6 {[%clk 0:02:49.5]} 9. Qf5 {[%clk 0:02:25.2]} 9... Be7 {[%clk 0:02:26.5]} 10.
g4 {[%clk 0:02:13.3]} 10... Bc8 {[%clk 0:01:59.6]} 11. Nd6+ {[%clk 0:02:01.6]}
11... Qxd6 {[%clk 0:01:57.7]} 12. Qc2 {[%clk 0:01:49.2]} 12... Bxg4 {[%clk
0:01:52.4]} 13. f3 {[%clk 0:01:42.5]} 13... Bh5 {[%clk 0:01:47.5]} 14. Qf5
{[%clk 0:01:34.6]} 14... Bg6 {[%clk 0:01:46.9]} 15. Qh3 {[%clk 0:01:32.3]} 15...
Bxb1 {[%clk 0:01:44.8]} 16. Rxb1 {[%clk 0:01:22.9]} 16... O-O {[%clk 0:01:38.7]}
17. Qg2 {[%clk 0:01:15.2]} 17... Nb4 {[%clk 0:01:32.8]} 18. Nh3 {[%clk 0:00:59]}
18... Nd3+ {[%clk 0:01:26.9]} 19. Kd1 {[%clk 0:00:51.2]} 19... Nxc1 {[%clk
0:01:26.8]} 20. Rxc1 {[%clk 0:00:50.1]} 20... Qc6 {[%clk 0:01:15.8]} 21. Rg1
{[%clk 0:00:45.7]} 21... g6 {[%clk 0:01:13.1]} 22. Nf4 {[%clk 0:00:37.6]} 22...
Rfe8 {[%clk 0:01:10.3]} 23. Nxg6 {[%clk 0:00:32.8]} 23... hxg6 {[%clk
0:01:07.7]} 24. h4 {[%clk 0:00:28.4]} 24... Bf8 {[%clk 0:01:06.5]} 25. h5 {[%clk
0:00:28.4]} 25... Nxh5 {[%clk 0:01:06.5]} 26. Qh3 {[%clk 0:00:15.4]} 26... Bg7
{[%clk 0:01:01.6]} 27. Qg2 {[%clk 0:00:13.6]} 27... Qa4+ {[%clk 0:01:01.4]} 28.
b3 {[%clk 0:00:12.9]} 28... Qxa2 {[%clk 0:01:01.9]} 29. Rc2 {[%clk 0:00:12.4]}
29... Qb1+ {[%clk 0:01:00.6]} 30. Rc1 {[%clk 0:00:11.7]} 30... Qxb3+ {[%clk
0:01:01.4]} 31. Rc2 {[%clk 0:00:07.1]} 31... a5 {[%clk 0:00:56.3]} 32. Kc1
{[%clk 0:00:03.1]} 32... a4 {[%clk 0:00:55.7]} 0

[Event "Open Nuevo Centro. Jornada 2"]
[Site "Chess.com"]
[Date "2020.06.26"]
[Round "1"]
[White "Deusa Ballesteros, Lucas "]
[Black "Remolar Gallen, Jose"]
[Result "0-1"]
[WhiteElo "1461"]
[BlackElo "2353"]
[TimeControl "180+2"]
[EndTime "10:38:40 PDT"]
[Termination "Victoria de ChessMonguer por tiempo"]

1. e4 {[%clk 0:03:00.3]} 1... d6 {[%clk 0:03:00.9]} 2. d4 {[%clk 0:02:58.3]}
2... Nf6 {[%clk 0:03:01.8]} 3. Nc3 {[%clk 0:02:55.6]} 3... g6 {[%clk 0:03:02.5]}
4. f4 {[%clk 0:02:52.1]} 4... Bg7 {[%clk 0:03:02.3]} 5. Nf3 {[%clk 0:02:52.2]}
5... O-O {[%clk 0:03:02.5]} 6. Be2 {[%clk 0:02:49.9]} 6... c6 {[%clk 0:02:53.5]}
7. O-O {[%clk 0:02:47.1]} 7... b5 {[%clk 0:02:47.3]} 8. a3 {[%clk 0:02:46.6]}
8... Bb7 {[%clk 0:02:36.9]} 9. h3 {[%clk 0:02:47]} 9... a6 {[%clk 0:02:36.1]}
10. Be3 {[%clk 0:02:46.4]} 10... c5 {[%clk 0:02:12.4]} 11. e5 {[%clk 0:02:31.5]}
11... Nfd7 {[%clk 0:02:12.5]} 12. exd6 {[%clk 0:02:21.9]} 12... exd6 {[%clk
0:02:13.2]} 13. Bf2 {[%clk 0:02:14.3]} 13... Nc6 {[%clk 0:02:09.9]} 14. dxc5
{[%clk 0:01:59.4]} 14... dxc5 {[%clk 0:01:41.5]} 15. Rb1 {[%clk 0:01:41.7]}
15... Re8 {[%clk 0:01:24]} 16. Re1 {[%clk 0:01:38.5]} 16... b4 {[%clk
0:00:59.7]} 17. axb4 {[%clk 0:01:34.9]} 17... Nxb4 {[%clk 0:01:00.8]} 18. Qd2
{[%clk 0:01:19.3]} 18... Qc7 {[%clk 0:01:01.3]} 19. g3 {[%clk 0:01:12.6]} 19...
Rad8 {[%clk 0:00:56.7]} 20. Qc1 {[%clk 0:01:01.4]} 20... Rxe2 {[%clk 0:00:54.7]}
21. Nxe2 {[%clk 0:00:51.7]} 21... Bxf3 {[%clk 0:00:55.2]} 22. Nc3 {[%clk
0:00:44]} 22... Bb7 {[%clk 0:00:51.1]} 23. Re2 {[%clk 0:00:36.3]} 23... Qc6
{[%clk 0:00:50.2]} 24. Be3 {[%clk 0:00:28.5]} 24... Qh1+ {[%clk 0:00:39.3]} 25.
Kf2 {[%clk 0:00:29.3]} 25... Qg2+ {[%clk 0:00:36.2]} 26. Ke1 {[%clk 0:00:28.2]}
26... Qxg3+ {[%clk 0:00:37.8]} 27. Bf2 {[%clk 0:00:22.3]} 27... Qxh3 {[%clk
0:00:39.1]} 28. Qe3 {[%clk 0:00:13]} 28... Qh1+ {[%clk 0:00:36.8]} 29. Bg1
{[%clk 0:00:12.4]} 29... Bd4 {[%clk 0:00:35.5]} 30. Rh2 {[%clk 0:00:11.3]} 30...
Qxh2 {[%clk 0:00:28.6]} 31. Qxd4 {[%clk 0:00:10.8]} 31... cxd4 {[%clk
0:00:23.3]} 32. Bxh2 {[%clk 0:00:11.1]} 32... dxc3 {[%clk 0:00:24.3]} 33. bxc3
{[%clk 0:00:13]} 33... Nxc2+ {[%clk 0:00:24.1]} 34. Kd2 {[%clk 0:00:14.6]} 34...
Be4 {[%clk 0:00:25.6]} 35. Rb7 {[%clk 0:00:11.7]} 35... Nc5+ {[%clk 0:00:25.8]}
0

[Event "Open Nuevo Centro. Jornada 2"]
[Site "Chess.com"]
[Date "2020.06.26"]
[Round "1"]
[White "Alvarez Usina, Jordi"]
[Black "Gil López, Alejandro"]
[Result "0-1"]
[WhiteElo "1189"]
[BlackElo "2096"]
[TimeControl "180+2"]
[EndTime "10:39:07 PDT"]
[Termination "Victoria de AglVal0313 por tiempo"]

1. d4 {[%clk 0:02:43.6]} 1... e5 {[%clk 0:03:00.2]} 2. dxe5 {[%clk 0:02:42.1]}
2... d6 {[%clk 0:03:01.5]} 3. exd6 {[%clk 0:02:41.7]} 3... Bxd6 {[%clk
0:03:03.4]} 4. Nf3 {[%clk 0:02:39.3]} 4... Nc6 {[%clk 0:03:04.7]} 5. Bg5 {[%clk
0:02:37.8]} 5... f6 {[%clk 0:03:04.4]} 6. Bh4 {[%clk 0:02:37.2]} 6... Bg4 {[%clk
0:03:04.3]} 7. Bg3 {[%clk 0:02:34.9]} 7... Bb4+ {[%clk 0:02:55.3]} 8. c3 {[%clk
0:02:31.1]} 8... Qxd1+ {[%clk 0:02:52.6]} 9. Kxd1 {[%clk 0:02:30.4]} 9... O-O-O+
{[%clk 0:02:54.2]} 10. Kc2 {[%clk 0:02:29.4]} 10... Bf5+ {[%clk 0:02:52.6]} 11.
Kc1 {[%clk 0:02:23.1]} 11... Bc5 {[%clk 0:02:52.6]} 12. Nbd2 {[%clk 0:02:21.5]}
12... h5 {[%clk 0:02:44.5]} 13. e3 {[%clk 0:02:07.7]} 13... Nge7 {[%clk
0:02:37.7]} 14. h3 {[%clk 0:01:47.9]} 14... g5 {[%clk 0:02:36.4]} 15. Bc4 {[%clk
0:01:39.5]} 15... h4 {[%clk 0:02:32.6]} 16. Bh2 {[%clk 0:01:38.6]} 16... a5
{[%clk 0:02:23.9]} 17. Nb3 {[%clk 0:01:23.6]} 17... Bb6 {[%clk 0:02:20.5]} 18.
Rd1 {[%clk 0:01:19.9]} 18... Rxd1+ {[%clk 0:02:17.6]} 19. Kxd1 {[%clk 0:01:19]}
19... Rd8+ {[%clk 0:02:18.5]} 20. Ke2 {[%clk 0:01:18.1]} 20... Be4 {[%clk
0:02:12.6]} 21. Nbd2 {[%clk 0:01:11.9]} 21... Bg6 {[%clk 0:02:10]} 22. Rd1
{[%clk 0:01:10.6]} 22... Kb8 {[%clk 0:01:58.3]} 23. Bb3 {[%clk 0:00:43.3]} 23...
f5 {[%clk 0:01:51.8]} 24. Nc4 {[%clk 0:00:39.7]} 24... Rxd1 {[%clk 0:01:35.8]}
25. Kxd1 {[%clk 0:00:34.4]} 25... Bc5 {[%clk 0:01:37.3]} 26. Ncd2 {[%clk
0:00:28.8]} 26... Bh5 {[%clk 0:01:33.1]} 27. Kc2 {[%clk 0:00:26.3]} 27... f4
{[%clk 0:01:20.1]} 28. exf4 {[%clk 0:00:23.5]} 28... gxf4 {[%clk 0:01:22]} 29.
Bxf4 {[%clk 0:00:22.9]} 29... Bxf2 {[%clk 0:01:22.3]} 30. Be6 {[%clk 0:00:19.3]}
30... Nd8 {[%clk 0:01:11.9]} 31. Bg4 {[%clk 0:00:18]} 31... Bg6+ {[%clk
0:01:10.3]} 32. Kc1 {[%clk 0:00:17.2]} 32... Nd5 {[%clk 0:01:04.8]} 33. Bh2
{[%clk 0:00:15.8]} 33... Ne3 {[%clk 0:01:04.2]} 34. Ne5 {[%clk 0:00:11.8]} 34...
Bh7 {[%clk 0:00:55.4]} 35. Bf3 {[%clk 0:00:10.5]} 35... Kc8 {[%clk 0:00:53.5]}
36. Ndc4 {[%clk 0:00:08.9]} 36... Nxc4 {[%clk 0:00:51.1]} 37. Nxc4 {[%clk
0:00:08.2]} 37... b6 {[%clk 0:00:52.4]} 38. Ne5 {[%clk 0:00:08.1]} 38... Be3+
{[%clk 0:00:49.8]} 39. Kd1 {[%clk 0:00:03.4]} 39... Nb7 {[%clk 0:00:45.4]} 40.
Bg4+ {[%clk 0:00:03.6]} 40... Kb8 {[%clk 0:00:45.2]} 41. Nf3 {[%clk 0:00:02.8]}
41... Bf2 {[%clk 0:00:24.5]} 0